bitfinex-derivatives/quotes_SOLF0:USTF0_20250228
["timestamp","ask_amount","ask_price","bid_price","bid_amount"]
[1740785273900,0.04532736,147.35,147.32,0.0490521]
[1740785274100,0.04532736,147.35,147.34,5.4322]
[1740785277205,0.04532736,147.35,147.32,0.0490521]
[1740785277413,0.04532736,147.35,147.33,5.4323]
[1740785277608,0.04532736,147.35,147.32,0.0490521]
[1740785277812,0.04532736,147.35,147.33,5.4325]
[1740785278707,0.04532736,147.35,147.32,0.0490521]
[1740785279303,5.4324,147.34,147.32,0.0490521]
[1740785281007,5.47732736,147.35,147.32,0.0490521]
[1740785281419,0.04532736,147.35,147.32,0.0490521]
[1740785281615,5.4324,147.34,147.32,0.0490521]
[1740785281816,0.04532736,147.35,147.32,0.0490521]
[1740785282018,0.04532736,147.35,147.32,5.4818521]
[1740785282311,5.47732736,147.35,147.32,5.4818521]
[1740785283018,0.04532736,147.35,147.32,5.4818521]
[1740785283317,5.4322,147.34,147.32,5.4818521]
[1740785283519,0.04532736,147.35,147.32,5.4818521]
[1740785283713,5.47732736,147.35,147.32,5.4818521]
[1740785283914,0.04532736,147.35,147.32,0.0490521]
[1740785284410,5.4325,147.33,147.32,0.0490521]
[1740785285717,1.7302,147.34,147.32,5.4816521]
[1740785285919,1.7302,147.34,147.32,0.0490521]
[1740785286920,5.4325,147.33,147.32,0.0490521]
[1740785287523,1.7302,147.34,147.32,0.0490521]
[1740785288321,0.04532736,147.35,147.32,0.0490521]
[1740785288919,5.47712736,147.35,147.33,5.4323]
[1740785289119,0.04532736,147.35,147.33,5.4323]
[1740785289921,0.04532736,147.35,147.32,0.0490521]
[1740785290121,0.04532736,147.35,147.34,5.4322]
[1740785291024,0.04532736,147.35,147.32,0.0490521]
[1740785291219,0.04532736,147.35,147.33,5.4324]
[1740785292225,5.4325,147.33,147.32,0.0490521]
[1740785299725,5.4339,147.3,147.27,17.4547]
[1740785300828,5.4339,147.3,147.27,17.49827727]
[1740785300829,5.48430168,147.3,147.27,17.49827727]
[1740785303628,0.05040168,147.3,147.27,17.49827727]
[1740785303826,0.05040168,147.3,147.29,5.434]
[1740785305731,5.4316,147.36,147.28,1.7429]
[1740785305927,3.6319,147.38,147.33,5.4324]
[1740785306431,5.4312,147.37,147.33,5.4324]
[1740785306930,0.05015633,147.36,147.34,0.04297843]
[1740785307633,0.05015633,147.36,147.35,5.4318]
[1740785310935,7.2422,147.43,147.38,5.4304]
[1740785311137,7.2422,147.43,147.33,1.8828]
[1740785311334,7.2422,147.43,147.38,5.4304]
[1740785311842,0.04357037,147.42,147.39,0.05026089]
[1740785312433,0.04357037,147.42,147.41,5.4296]
[1740785315539,234.67916066,147.54,147.41,3.4]
[1740785315733,234.67916066,147.54,147.42,13.8901]
[1740785316739,0.04945387,147.48,147.45,0.04710028]
[1740785317143,0.04945387,147.48,147.47,5.4274]
[1740785317339,0.04945387,147.48,147.47,17.4274]
[1740785320341,5.387e-05,147.48,147.47,17.4274]
[1740785320741,5.387e-05,147.48,147.47,19.2565]
[1740785321243,5.387e-05,147.48,147.47,22.6565]
[1740785322544,5.387e-05,147.48,147.47,239.7165]
[1740785323646,5.387e-05,147.48,147.47,240.96238397]
[1740785323842,5.387e-05,147.48,147.47,240.96238016]
[1740785326449,5.387e-05,147.48,147.47,240.96240364]
[1740785327249,5.387e-05,147.48,147.47,236.3165]
[1740785329048,5.387e-05,147.48,147.47,19.2565]
[1740785332456,5.387e-05,147.48,147.46,1.8861]
[1740785332659,5.387e-05,147.48,147.46,12.0]
[1740785333048,5.387e-05,147.48,147.45,0.04710028]
[1740785333249,5.42715387,147.48,147.45,0.04710028]
[1740785333759,5.387e-05,147.48,147.45,0.04710028]
[1740785334659,5.387e-05,147.48,147.43,12.0]
[1740785334860,5.387e-05,147.48,147.38,3.5438]
[1740785335155,5.4284,147.45,147.39,12.0]
[1740785335855,0.04708409,147.43,147.41,0.04366739]
[1740785338962,0.04708409,147.43,147.35,12.0]
[1740785339161,193.6838,147.49,147.35,12.0]
[1740785340056,5.47492235,147.43,147.41,0.04927756]
[1740785340252,5.4291,147.43,147.41,0.04927756]
[1740785340460,5.4807574,147.43,147.41,0.04927756]
[1740785342659,5.4292,147.42,147.41,0.04927756]
[1740785344363,0.0516574,147.43,147.41,0.04927756]
[1740785344562,5.4806574,147.43,147.41,0.04927756]
[1740785346663,0.0516574,147.43,147.41,0.04927756]
[1740785347259,0.0516574,147.43,147.41,5.47867756]
[1740785348565,0.0516574,147.43,147.41,0.04927756]
[1740785348757,0.0516574,147.43,147.42,5.4292]
[1740785355069,5.74e-05,147.43,147.42,5.4292]
[1740785355267,5.74e-05,147.43,147.42,7.3249]
[1740785356770,5.74e-05,147.43,147.42,10.7249]
[1740785357663,5.74e-05,147.43,147.42,11.9712018]
[1740785358673,5.74e-05,147.43,147.42,10.7249]
[1740785359068,5.74e-05,147.43,147.42,11.97121987]
[1740785359264,5.74e-05,147.43,147.42,10.7249]
[1740785359674,5.74e-05,147.43,147.42,11.97121616]
[1740785360677,5.74e-05,147.43,147.42,13.32788418]
[1740785361971,5.74e-05,147.43,147.42,13.32768888]
[1740785362176,1.7593,147.54,147.42,13.32768888]
[1740785362377,1.7593,147.54,147.51,5.4256]
[1740785362576,1.7593,147.54,147.52,12.0]
[1740785363277,1.7593,147.54,147.52,12.04850504]
[1740785363474,1.80478921,147.54,147.52,17.47400504]
[1740785364075,1.80478921,147.54,147.52,12.04850504]
[1740785364677,1.80478921,147.54,147.52,17.47400504]
[1740785365579,1.80478921,147.54,147.52,0.04850504]
[1740785365777,1.80478921,147.54,147.48,12.0]
[1740785365978,1.80478921,147.54,147.48,17.4268]
[1740785366676,1.80478921,147.54,147.49,5.4266]
[1740785366870,1.80478921,147.54,147.5,0.04639681]
[1740785367781,1.80478921,147.54,147.52,5.4254]
[1740785368079,1.80478921,147.54,147.5,0.04639681]
[1740785368280,1.80478921,147.54,147.51,5.4256]
[1740785368473,1.80478921,147.54,147.5,0.04639681]
[1740785369181,1.80478921,147.54,147.52,5.4255]
[1740785371290,1.80478921,147.54,147.53,5.4252]
[1740785373182,0.04548921,147.54,147.53,5.4252]
[1740785378593,3.42548921,147.54,147.4,37.61165734]
[1740785378791,190.0,147.53,147.4,37.61165734]
[1740785378991,5.4273,147.48,147.4,37.61165734]
[1740785379191,1.8044,147.47,147.4,37.61165734]
[1740785379694,0.04463917,147.45,147.42,0.04867545]
[1740785381595,0.04463917,147.45,147.4,37.61165734]
[1740785382296,0.04463917,147.45,147.37,12.0]
[1740785382693,0.04463917,147.45,147.4,0.04359069]
[1740785383295,5.47293917,147.45,147.4,0.04359069]
[1740785383693,0.04463917,147.45,147.4,0.04359069]
[1740785383891,5.4286,147.44,147.4,0.04359069]
[1740785384796,5.4293,147.42,147.4,0.04359069]
[1740785385192,0.04463917,147.45,147.31,5.3576]
[1740785385495,1.717,147.46,147.33,12.0]
[1740785385996,5.4306,147.39,147.33,12.0]
[1740785386290,5.4306,147.39,147.35,0.0442977]
[1740785386291,0.05207239,147.37,147.35,0.0442977]
[1740785390000,5.48317239,147.37,147.35,0.0442977]
[1740785390199,0.05207239,147.37,147.35,0.0442977]
[1740785391591,5.48317239,147.37,147.35,0.0442977]
[1740785391794,0.05207239,147.37,147.35,0.0442977]
[1740785392398,5.4314,147.36,147.35,0.0442977]
[1740785393907,0.05207239,147.37,147.35,0.0442977]
[1740785395408,5.4314,147.36,147.35,0.0442977]
[1740785397406,5.4328,147.33,147.3,12.0]
[1740785397606,5.4328,147.33,147.3,17.4336]
[1740785397808,1.8994,147.39,147.3,12.0]
[1740785398508,5.4322,147.34,147.33,0.04813938]
[1740785400806,0.04767374,147.36,147.33,0.04813938]
[1740785401407,5.4322,147.34,147.33,0.04813938]
[1740785402302,0.04767374,147.36,147.27,12.0]
[1740785402503,1.8994,147.39,147.25,5.4334]
[1740785402811,1.8994,147.39,147.26,12.0]
[1740785403010,5.4327,147.33,147.26,12.0]
[1740785403212,1.8994,147.39,147.26,12.0]
[1740785403515,0.05059502,147.34,147.31,0.05010601]
[1740785404011,0.05059502,147.34,147.32,5.4329]
[1740785405613,0.05059502,147.34,147.31,0.05010601]
[1740785405908,0.05059502,147.34,147.31,12.05010601]
[1740785406703,0.05059502,147.34,147.33,5.4325]
[1740785407206,190.0,147.47,147.31,12.05010601]
[1740785407411,3.7075,147.49,147.32,3.6292]
[1740785407711,7.1576,147.51,147.32,3.6292]
[1740785407915,7.1576,147.51,147.33,1.24705005]
[1740785408106,1.7316,147.51,147.34,1.35740464]
[1740785408307,1.7316,147.51,147.45,5.4278]
[1740785408511,0.04600882,147.44,147.43,12.0]
[1740785408712,1.7316,147.51,147.47,0.04956437]
[1740785408912,1.7316,147.51,147.43,12.0]
[1740785409208,217.24,147.52,147.43,12.0]
[1740785409517,3.7075,147.53,147.43,12.0]
[1740785409715,9.1328,147.53,147.47,5.4273]
[1740785409919,0.04810446,147.49,147.47,0.04725665]
[1740785414721,0.04810446,147.49,147.47,5.47445665]
[1740785415120,0.04810446,147.49,147.47,0.04725665]
[1740785420022,5.47500446,147.49,147.47,0.04725665]
[1740785421428,5.427,147.48,147.47,0.04725665]
[1740785422922,0.04810446,147.49,147.47,0.04725665]
[1740785423128,5.47490446,147.49,147.47,0.04725665]
[1740785424323,5.427,147.48,147.47,0.04725665]
[1740785424826,5.4293,147.42,147.4,5.4411]
[1740785425031,5.4293,147.42,147.39,27.1802]
[1740785425628,5.4298,147.41,147.39,21.75]
[1740785426026,0.04423838,147.41,147.39,21.79283908]
[1740785427427,5.43,147.4,147.39,21.79283908]
[1740785427826,0.04423838,147.41,147.39,21.79283908]
[1740785428027,5.47393838,147.41,147.39,21.79283908]
[1740785428332,0.04423838,147.41,147.39,21.79283908]
[1740785429133,0.04423838,147.41,147.4,5.43]
[1740785432130,1.8196,147.5,147.44,5.4283]
[1740785432330,1.8196,147.5,147.4,12.0]
[1740785432533,1.8196,147.5,147.42,6.02]
[1740785432733,1.8196,147.5,147.44,5.4283]
[1740785433234,0.04796096,147.48,147.46,0.0441918]
[1740785434236,0.04796096,147.48,147.46,5.4718918]
[1740785434838,0.04796096,147.48,147.46,0.0441918]
[1740785435237,5.47516096,147.48,147.46,0.0441918]
[1740785435630,0.04796096,147.48,147.46,0.0441918]
[1740785436442,5.47526096,147.48,147.46,0.0441918]
[1740785436642,0.04796096,147.48,147.46,0.0441918]
[1740785437236,0.04796096,147.48,147.47,5.4274]
[1740785439443,0.04796096,147.48,147.46,17.4717918]
[1740785439642,0.04796096,147.48,147.46,12.0441918]
[1740785440637,0.04796096,147.48,147.47,5.4274]
[1740785442036,3.5921,147.58,147.46,12.0441918]
[1740785442243,5.4246,147.55,147.51,5.4256]
[1740785442446,3.5921,147.58,147.51,5.4256]
[1740785442633,3.5921,147.58,147.46,12.0]
[1740785442839,5.4243,147.56,147.52,5.4255]
[1740785443141,3.5921,147.58,147.52,5.4255]
[1740785443344,0.05213867,147.55,147.53,5.47747099]
[1740785445544,0.05213867,147.55,147.54,5.4248]
[1740785446447,0.05213867,147.55,147.53,0.05227099]
[1740785447141,0.05213867,147.55,147.44,3.6956]
[1740785447339,12.02,147.58,147.44,3.6956]
[1740785447538,5.4261,147.51,147.46,5.4276]
[1740785447743,5.4261,147.51,147.44,3.6956]
[1740785448448,0.04480214,147.49,147.46,0.04859684]
[1740785450147,5.4271,147.48,147.46,0.04859684]
[1740785451448,0.04480214,147.49,147.46,0.04859684]
[1740785452047,5.47150214,147.49,147.46,0.04859684]
[1740785452247,0.04480214,147.49,147.46,0.04859684]
[1740785452644,5.4274,147.47,147.46,0.04859684]
[1740785454152,5.4273,147.48,147.46,0.04859684]
[1740785456252,5.4274,147.47,147.46,0.04859684]
[1740785457253,0.04480214,147.49,147.46,0.04859684]
[1740785457446,5.4272,147.48,147.46,0.04859684]
[1740785462749,0.04480214,147.49,147.46,0.04859684]
[1740785462953,1.78,147.58,147.47,12.04]
[1740785463150,75.76477888,147.6,147.47,12.04]
[1740785463354,5.4237,147.58,147.53,5.425]
[1740785463548,75.76477888,147.6,147.47,12.04]
[1740785463754,5.4238,147.57,147.47,12.04]
[1740785463955,75.76477888,147.6,147.47,12.04]
[1740785464157,0.04598796,147.53,147.51,0.0508635]
[1740785464356,5.424,147.57,147.52,17.4655]
[1740785464546,0.0491063,147.53,147.52,5.4255]
[1740785464755,0.04788335,147.54,147.51,12.08380464]
[1740785464952,75.76477888,147.6,147.51,12.04]
[1740785465147,0.04747712,147.54,147.51,12.09098826]
[1740785465352,75.76477888,147.6,147.51,17.4657]
[1740785465652,3.6215,147.61,147.51,17.4657]
[1740785465852,5.4241,147.56,147.54,0.04743348]
[1740785466251,0.0446952,147.57,147.54,0.04743348]
[1740785466955,5.4243,147.56,147.54,0.04743348]
[1740785467355,0.0446952,147.57,147.54,0.04743348]
[1740785467556,5.4244,147.55,147.54,0.04743348]
[1740785467756,0.0446952,147.57,147.54,0.04743348]
[1740785468153,5.4244,147.55,147.54,0.04743348]
[1740785472860,0.0446952,147.57,147.54,0.04743348]
[1740785473859,0.0446952,147.57,147.55,5.4241]
[1740785474061,0.0446952,147.57,147.54,0.04743348]
[1740785475766,0.0446952,147.57,147.56,5.4241]
[1740785476967,217.04,147.66,147.54,0.04743348]
[1740785477264,190.0,147.75,147.53,229.0]
[1740785477265,188.31694706,147.7,147.53,229.0]
[1740785477464,188.31694706,147.7,147.54,1.35556459]
[1740785478171,81.18467888,147.68,147.63,5.4214]
[1740785478466,75.76477888,147.68,147.62,12.08]
[1740785478661,0.04377765,147.67,147.64,0.05188759]
[1740785479067,5.4208,147.65,147.64,0.05188759]
[1740785479865,5.4215,147.63,147.58,12.08]
[1740785480957,0.04684148,147.62,147.59,0.05056452]
[1740785481465,5.4226,147.6,147.59,0.05056452]
[1740785483059,0.04684148,147.62,147.51,22.8815]
[1740785483264,12.08,147.64,147.51,22.8815]
[1740785483966,12.08,147.64,147.51,17.4559]
[1740785484465,0.04339651,147.59,147.57,0.05107235]
[1740785484669,12.08,147.64,147.57,0.05107235]
[1740785484871,5.4233,147.58,147.57,0.05107235]
[1740785485268,0.0448845,147.59,147.51,3.4781]
[1740785485769,5.425,147.54,147.52,6.92]
[1740785485959,12.08,147.64,147.52,6.92]
[1740785486466,5.4252,147.53,147.52,6.92]
[1740785489765,5.47357416,147.54,147.52,6.92]
[1740785492169,5.4252,147.53,147.52,6.92]
[1740785493564,5.4255,147.52,147.51,0.04385916]
[1740785497272,0.04857416,147.54,147.51,0.04385916]
[1740785497571,3.5327,147.63,147.51,0.04385916]
[1740785497768,272.71645131,147.62,147.56,5.424]
[1740785498369,267.29445131,147.62,147.54,12.16]
[1740785498769,0.05090578,147.59,147.57,0.04506312]
[1740785499775,5.4233,147.58,147.57,0.04506312]
[1740785501882,0.05090578,147.59,147.5,12.16]
[1740785502071,5.4239,147.57,147.5,12.16]
[1740785502381,5.4239,147.57,147.52,5.4253]
[1740785502680,5.4239,147.57,147.5,12.16]
[1740785503076,0.0506372,147.55,147.53,5.4251]
[1740785503282,5.4241,147.56,147.53,5.4251]
[1740785503575,0.04461649,147.55,147.53,5.47021648]
[1740785504577,0.04461649,147.55,147.53,0.04511648]
[1740785505176,0.04461649,147.55,147.53,5.47021648]
[1740785505878,0.04461649,147.55,147.54,5.4248]
[1740785506083,216.9,147.62,147.53,0.04511648]
[1740785506279,5.423,147.59,147.5,20.82]
[1740785507191,216.9,147.62,147.53,5.425]
[1740785507385,0.0480056,147.56,147.53,5.47097982]
[1740785507585,0.05216402,147.59,147.56,0.05132386]
[1740785507785,5.4239,147.57,147.53,5.425]
[1740785507985,5.4239,147.57,147.56,0.0506879]
[1740785518896,5.4239,147.57,147.56,8.79e-05]
[1740785519497,8.8039,147.57,147.56,8.79e-05]
[1740785520194,12.5134,147.57,147.56,8.79e-05]
[1740785521299,5.4252,147.53,147.52,3.6067879]
[1740785521496,1.8284,147.58,147.52,8.79e-05]
[1740785522200,5.4247,147.55,147.52,8.79e-05]
[1740785522593,5.47125491,147.55,147.52,0.0463444]
[1740785523802,0.04655491,147.55,147.52,0.0463444]
[1740785524501,0.04655491,147.55,147.52,5.4715444]
[1740785524695,5.4252,147.53,147.52,0.0463444]
[1740785525405,0.04655491,147.55,147.52,0.0463444]
[1740785526001,0.04655491,147.55,147.53,5.425]
[1740785526700,0.04655491,147.55,147.54,5.4248]
[1740785527796,1.7815,147.62,147.52,1.7878444]
[1740785528000,1.8521,147.63,147.52,1.7415879]
[1740785528405,5.4232,147.59,147.55,5.4243]
[1740785528702,1.8521,147.63,147.55,5.4243]
[1740785529204,0.04768733,147.6,147.58,0.04892763]
[1740785529804,5.423,147.59,147.58,0.04892763]
[1740785530505,5.423,147.59,147.58,2.763e-05]
[1740785533603,5.4244,147.55,147.54,2.763e-05]
[1740785534806,5.4248,147.54,147.53,3.73e-06]
[1740785539207,5.4248,147.54,147.5,6.82]
[1740785539208,5.4259,147.51,147.5,3.73e-06]
[1740785540804,0.04421529,147.52,147.45,5.75]
[1740785541003,1.8703,147.51,147.45,5.75]
[1740785541204,12.12,147.5,147.45,5.75]
[1740785541410,5.4278,147.46,147.45,5.75]
[1740785541906,0.05128229,147.47,147.44,0.04890124]
[1740785542205,5.4281,147.45,147.44,0.04890124]
[1740785542510,5.4279,147.46,147.44,0.04890124]
[1740785543606,5.47888229,147.47,147.44,0.04890124]
[1740785543806,0.05128229,147.47,147.45,5.4281]
[1740785544106,0.05128229,147.47,147.44,0.04890124]
[1740785544308,0.05128229,147.47,147.44,5.44420124]
[1740785544608,0.05128229,147.47,147.44,3.57170124]
[1740785544804,0.05128229,147.47,147.44,0.04890124]
[1740785545106,0.05128229,147.47,147.45,5.428]
[1740785545310,0.05128229,147.47,147.44,0.04890124]
[1740785546108,5.4281,147.45,147.44,0.04890124]
[1740785549014,5.47878229,147.47,147.44,0.04890124]
[1740785549911,5.4278,147.46,147.44,0.04890124]
[1740785550516,5.47878229,147.47,147.44,0.04890124]
[1740785550814,5.47878229,147.47,147.44,5.47730124]
[1740785551114,5.47878229,147.47,147.44,0.04890124]
[1740785551804,0.05128229,147.47,147.44,0.04890124]
[1740785552006,0.05128229,147.47,147.45,5.4279]
[1740785552204,0.05128229,147.47,147.44,0.04890124]
[1740785552911,5.4281,147.45,147.44,0.04890124]
[1740785553716,5.4281,147.45,147.44,1.24e-06]
[1740785561019,0.05128229,147.47,147.44,1.24e-06]
[1740785561819,5.4281,147.45,147.44,1.24e-06]
[1740785564722,0.05128229,147.47,147.44,1.24e-06]
[1740785566422,0.05128229,147.47,147.44,5.42840124]
[1740785567522,0.05128229,147.47,147.45,5.4278]
[1740785567825,12.16,147.54,147.44,1.24e-06]
[1740785568020,12.16,147.54,147.42,12.16]
[1740785568215,12.16,147.54,147.42,21.26]
[1740785568419,3.6077,147.55,147.42,21.26]
[1740785568925,0.04756614,147.49,147.46,0.04823161]
[1740785569327,87.92477888,147.56,147.46,0.04823161]
[1740785569725,380.20234706,147.58,147.46,0.04823161]
[1740785569726,1.8854,147.58,147.46,0.04823161]
[1740785569919,1.8854,147.58,147.47,12.16]
[1740785570127,1.8854,147.58,147.48,3.5995]
[1740785570323,1.8854,147.58,147.52,0.04471527]
[1740785570324,0.04561589,147.54,147.52,0.04471527]
[1740785571029,0.04561589,147.54,147.53,5.4248]
[1740785571731,0.04561589,147.54,147.52,0.04471527]
[1740785572730,0.04561589,147.54,147.53,5.4252]
[1740785573428,75.76477888,147.59,147.52,0.04471527]
[1740785573630,222.5427,147.6,147.56,5.424]
[1740785574625,0.04709522,147.59,147.57,0.04322664]
[1740785574829,0.04709522,147.59,147.52,12.18]
[1740785574830,217.12,147.6,147.52,12.18]
[1740785575025,0.05187446,147.59,147.57,0.0487066]
[1740785575632,0.05187446,147.59,147.58,5.423]
[1740785576518,12.18,147.65,147.57,0.0487066]
[1740785576724,12.18,147.65,147.6,5.4224]
[1740785577123,12.18,147.65,147.52,12.18]
[1740785577124,217.54675868,147.67,147.52,12.18]
[1740785577325,229.72675868,147.67,147.52,12.18]
[1740785577722,0.04623962,147.61,147.58,0.04361781]
[1740785577933,229.72675868,147.67,147.52,12.18]
[1740785578129,0.0518375,147.61,147.58,0.04484033]
[1740785578332,5.4212,147.64,147.56,3.6672]
[1740785578631,0.04597785,147.61,147.58,0.04820468]
[1740785581228,5.4229,147.6,147.58,0.04820468]
[1740785581430,0.04597785,147.61,147.58,0.04820468]
[1740785582137,5.46837785,147.61,147.58,0.04820468]
[1740785582434,0.04597785,147.61,147.58,0.04820468]
[1740785582634,5.423,147.59,147.58,0.04820468]
[1740785586326,5.423,147.59,147.5,12.14]
[1740785586531,0.04597785,147.61,147.48,1.7939]
[1740785586532,5.4253,147.53,147.48,1.7939]
[1740785586734,3.4753,147.6,147.48,1.7939]
[1740785586735,12.14,147.57,147.48,1.7939]
[1740785586935,5.4255,147.53,147.48,1.7939]
[1740785587239,12.14,147.57,147.48,1.7939]
[1740785587533,5.46825033,147.54,147.51,0.04627067]
[1740785587737,0.04325033,147.54,147.51,0.04627067]
[1740785592142,5.4255,147.52,147.51,0.04627067]
[1740785594334,0.04325033,147.54,147.51,0.04627067]
[1740785595742,0.04325033,147.54,147.51,12.20627067]
[1740785595943,12.16,147.61,147.51,12.20627067]
[1740785596237,12.16,147.61,147.54,5.4246]
[1740785596743,12.16,147.61,147.54,5.4248]
[1740785596938,12.16,147.61,147.56,0.05188168]
[1740785597143,0.04823457,147.59,147.56,0.05188168]
[1740785600346,0.04823457,147.59,147.56,5.47588168]
[1740785600542,0.04823457,147.59,147.56,0.05188168]
[1740785600944,0.04823457,147.59,147.58,5.4233]
[1740785602449,219.28125868,147.67,147.62,5.4218]
[1740785602450,229.18,147.67,147.62,5.4218]
[1740785602645,217.04,147.67,147.57,5.5073]
[1740785602846,45.55396957,147.68,147.57,5.5073]
[1740785603042,45.55396957,147.68,147.64,5.4209]
[1740785603748,0.04566363,147.67,147.65,0.05062215]
[1740785607549,0.04566363,147.67,147.66,5.4204]
[1740785612158,0.04566363,147.67,147.65,0.05062215]
[1740785612159,222.3576,147.74,147.69,5.419]
[1740785612557,5.4176,147.74,147.69,5.419]
[1740785613256,0.04582849,147.73,147.7,0.04717065]
[1740785613863,5.46372849,147.73,147.7,0.04717065]
[1740785614660,0.04582849,147.73,147.7,0.04717065]
[1740785617065,5.4186,147.71,147.7,0.04717065]
[1740785617468,12.16,147.72,147.62,14.38]
[1740785617659,5.4207,147.66,147.62,14.38]
[1740785618660,0.05048893,147.65,147.63,0.04703819]
[1740785618960,5.47138893,147.65,147.63,0.04703819]
[1740785619663,5.4211,147.64,147.63,0.04703819]
[1740785621466,0.05048893,147.65,147.63,0.04703819]
[1740785622467,5.47128893,147.65,147.63,0.04703819]
[1740785622966,5.4211,147.64,147.63,0.04703819]
[1740785624569,5.47138893,147.65,147.63,0.04703819]
[1740785624763,0.05048893,147.65,147.63,0.04703819]
[1740785625469,5.4211,147.64,147.63,0.04703819]
[1740785629472,5.4211,147.64,147.63,3.819e-05]
[1740785629678,5.4215,147.63,147.62,3.819e-05]
[1740785633372,0.05048893,147.65,147.62,3.819e-05]
[1740785635980,0.05048893,147.65,147.62,5.42183819]
[1740785636279,0.05048893,147.65,147.62,3.819e-05]
[1740785636478,0.05048893,147.65,147.64,5.4211]
[1740785637278,222.2185,147.72,147.64,5.4211]
[1740785637474,216.8,147.72,147.65,5.4207]
[1740785638376,216.8,147.72,147.67,5.4198]
[1740785638572,0.0486338,147.7,147.67,5.47075024]
[1740785638771,0.0486338,147.7,147.67,0.05095024]
[1740785640274,5.4678338,147.7,147.67,0.05095024]
[1740785641078,0.0486338,147.7,147.67,0.05095024]
[1740785642774,0.0486338,147.7,147.68,5.4194]
[1740785642981,0.0486338,147.7,147.67,0.05095024]
[1740785643682,0.0486338,147.7,147.69,5.4193]
[1740785644384,0.0486338,147.7,147.68,5.4195]
[1740785644581,0.0486338,147.7,147.67,0.05095024]
[1740785644782,0.0486338,147.7,147.69,5.4193]
[1740785648681,0.24834,147.75,147.67,12.19095024]
[1740785648886,0.24834,147.75,147.72,5.4178]
[1740785649279,0.24834,147.75,147.72,5.418]
[1740785649880,0.29816568,147.75,147.72,5.46756555]
[1740785650283,0.29816568,147.75,147.72,0.04956555]
[1740785650481,5.4175,147.74,147.72,0.04956555]
[1740785652083,0.29816568,147.75,147.72,0.04956555]
[1740785652378,5.71536568,147.75,147.72,0.04956555]
[1740785652984,112.99016823,147.84,147.73,12.12]
[1740785653779,112.99016823,147.84,147.72,140.3539128]
[1740785653982,79.36717888,147.84,147.73,12.16]
[1740785654178,0.05084314,147.79,147.76,5.46739062]
[1740785654986,0.05084314,147.79,147.76,0.05089062]
[1740785657592,0.05084314,147.79,147.78,5.416]
[1740785662094,0.05084314,147.79,147.76,0.05089062]
[1740785662795,0.05084314,147.79,147.78,5.416]
[1740785664295,0.05084314,147.79,147.76,0.05089062]
[1740785664794,3.5643,147.89,147.76,0.05089062]
[1740785664996,5.4135,147.85,147.74,5.6012]
[1740785665392,5.4135,147.85,147.81,5.4148]
[1740785665996,0.04730621,147.84,147.82,0.05095089]
[1740785666295,5.46140621,147.84,147.82,0.05095089]
[1740785666797,0.04730621,147.84,147.82,0.05095089]
[1740785668087,5.46110621,147.84,147.82,0.05095089]
[1740785668287,0.04730621,147.84,147.82,0.05095089]
[1740785668695,0.04730621,147.84,147.74,5.6012]
[1740785668895,12.2,147.86,147.76,5.4166]
[1740785669195,12.2,147.86,147.74,5.6012]
[1740785669691,5.4153,147.8,147.79,0.04955035]
[1740785670499,5.417,147.76,147.74,3.88]
[1740785670703,12.22,147.81,147.74,3.88]
[1740785670999,1.8568,147.8,147.74,3.88]
[1740785671210,5.4169,147.76,147.74,3.88]
[1740785671397,1.8568,147.8,147.74,3.88]
[1740785671598,0.04669637,147.78,147.76,5.716e-05]
[1740785672998,5.4164,147.77,147.76,5.716e-05]
[1740785674299,0.04669637,147.78,147.76,5.716e-05]
[1740785674901,0.04669637,147.78,147.76,5.41665716]
[1740785675402,0.04669637,147.78,147.76,5.716e-05]
[1740785677002,5.46279637,147.78,147.76,5.716e-05]
[1740785677403,0.04669637,147.78,147.76,5.716e-05]
[1740785678905,5.46269637,147.78,147.76,5.716e-05]
[1740785679099,0.04669637,147.78,147.76,5.41675716]
[1740785681200,0.04669637,147.78,147.76,5.716e-05]
[1740785682906,5.4164,147.77,147.76,5.716e-05]
[1740785684099,10.8177,147.77,147.76,5.716e-05]
[1740785687208,8.9961,147.77,147.76,5.716e-05]
[1740785690019,5.46279637,147.78,147.76,5.716e-05]
[1740785690315,0.04669637,147.78,147.76,5.716e-05]
[1740785697118,0.04669637,147.78,147.76,5.41675716]
[1740785700523,0.04669637,147.78,147.76,5.716e-05]
[1740785700723,0.04669637,147.78,147.77,5.4164]
[1740785715336,0.04669637,147.78,147.76,5.716e-05]